bitfinex/quotes_SOLUSD_20250421
["timestamp","ask_amount","ask_price","bid_price","bid_amount"]
[1745259162122,0.03,135.1,135.02,24.53909278]
[1745259162320,19.75681176,135.09,135.04,19.75681176]
[1745259162612,7.43228674,135.1,135.05,19.75681176]
[1745259162798,27.1890985,135.1,135.05,19.75681176]
[1745259162997,0.03,135.1,135.06,19.75681176]
[1745259163399,19.78681176,135.1,135.05,19.75681176]
[1745259163812,19.78681176,135.1,135.04,7.40480133]
[1745259164013,19.75681176,135.09,135.04,7.40480133]
[1745259164316,19.75681176,135.09,135.04,27.16161309]
[1745259164812,27.18888236,135.1,135.04,7.40480133]
[1745259165112,27.18888236,135.1,135.05,19.75681176]
[1745259165704,19.75681176,135.09,135.04,19.75681176]
[1745259166105,27.18888236,135.1,135.04,19.75681176]
[1745259166713,27.18888236,135.1,135.04,27.16166962]
[1745259167323,7.4320706,135.1,135.04,27.16166962]
[1745259167489,19.75681176,135.09,135.04,27.16166962]
[1745259167820,27.18888236,135.1,135.05,19.75681176]
[1745259167993,0.03,135.1,135.06,19.75681176]
[1745259168199,19.78681176,135.1,135.05,19.75681176]
[1745259168796,27.18896774,135.1,135.04,19.75681176]
[1745259169007,19.75681176,135.09,135.04,19.75681176]
[1745259169616,27.18896774,135.1,135.04,19.75681176]
[1745259169818,0.03,135.1,135.06,19.75681176]
[1745259170016,27.18876029,135.1,135.05,27.16147669]
[1745259170203,7.43194853,135.1,135.06,19.75681176]
[1745259170512,0.03,135.1,135.06,19.75681176]
[1745259171321,0.03,135.1,135.07,19.75681176]
[1745259171506,0.03,135.1,135.06,19.75681176]
[1745259171815,19.78681176,135.1,135.05,27.16147669]
[1745259172716,19.75681176,135.09,135.04,27.16175472]
[1745259173222,19.75681176,135.08,135.03,7.40564426]
[1745259173396,19.75681176,135.08,135.03,27.16245602]
[1745259174793,27.15986143,135.08,135.03,27.16245602]
[1745259175815,26.2038,135.1,135.05,19.75681176]
[1745259175816,20.03,135.1,135.05,19.75681176]
[1745259175987,47.18877837,135.1,135.05,27.16123464]
[1745259176391,47.18877837,135.1,135.05,19.75681176]
[1745259176700,19.75681176,135.09,135.04,27.16180115]
[1745259177913,27.1594868,135.09,135.04,7.40498939]
[1745259178112,27.1594868,135.09,135.03,27.162398]
[1745259178316,27.1594868,135.09,135.04,19.75681176]
[1745259178504,27.15935968,135.09,135.04,19.75681176]
[1745259178702,19.75681176,135.09,135.04,19.75681176]
[1745259179200,47.18899117,135.1,135.05,19.75681176]
[1745259179718,19.75681176,135.09,135.04,19.75681176]
[1745259180017,19.75681176,135.09,135.05,7.40466493]
[1745259180205,27.15933803,135.09,135.04,27.1617746]
[1745259180517,19.75681176,135.08,135.02,7.40631017]
[1745259180696,19.75681176,135.08,135.02,19.75681176]
[1745259180697,19.75681176,135.07,135.02,19.75681176]
[1745259181412,12.62609353,135.07,135.02,12.62609353]
[1745259182010,20.02992566,135.07,135.02,12.62609353]
[1745259182707,12.62609353,135.06,135.01,20.0326783]
[1745259182905,12.62609353,135.05,135.0,24.58725632]
[1745259183101,12.62609353,135.05,135.0,7.40725632]
[1745259183303,19.7368022,135.04,135.0,7.40725632]
[1745259183836,19.7368022,135.03,134.99,0.063]
[1745259184148,19.7368022,135.03,134.99,7.47084892]
[1745259184421,47.14230717,135.04,134.99,7.47084892]
[1745259185625,27.40550497,135.04,134.99,7.47084892]
[1745259185926,39.7368022,135.04,134.99,19.7998022]
[1745259186423,47.14211318,135.04,134.99,19.7998022]
[1745259187129,19.7368022,135.03,134.99,0.063]
[1745259187323,19.7368022,135.02,134.99,0.063]
[1745259187513,19.7368022,135.01,134.99,0.063]
[1745259187898,47.14352833,135.02,134.99,0.063]
[1745259188400,19.7368022,135.01,134.99,0.063]
[1745259188816,27.40672613,135.02,134.99,0.063]
[1745259188817,19.7368022,135.0,134.99,0.063]
[1745259189319,19.7368022,135.01,134.99,0.063]
[1745259190727,39.7368022,135.0,134.99,0.063]
[1745259191309,20.0,135.0,134.99,0.063]
[1745259191503,54.2508,135.02,134.99,0.063]
[1745259191727,19.7368022,135.01,134.99,0.063]
[1745259191934,26.0,135.01,134.99,0.063]
[1745259192306,39.7368022,135.04,134.99,19.7998022]
[1745259192514,19.7368022,135.03,134.99,19.7998022]
[1745259192806,19.7368022,135.01,134.99,0.063]
[1745259194428,45.7368022,135.0,134.99,0.063]
[1745259195434,65.7368022,135.0,134.99,0.063]
[1745259196733,73.1442096,135.0,134.99,0.063]
[1745259197336,65.7368022,135.0,134.99,0.063]
[1745259197540,73.1442096,135.0,134.99,0.063]
[1745259198843,53.4074074,135.0,134.99,0.063]
[1745259199041,65.7368022,135.0,134.99,0.063]
[1745259199642,46.0,135.0,134.99,0.063]
[1745259199826,65.7368022,135.0,134.99,0.063]
[1745259200236,73.1442096,135.0,134.99,0.063]
[1745259201714,109.11602003,135.0,134.99,0.063]
[1745259203456,20.0,134.95,134.93,0.063]
[1745259203622,19.7368022,134.94,134.93,0.063]
[1745259205623,26.0,134.96,134.93,0.063]
[1745259206851,45.7368022,134.96,134.93,0.063]
[1745259207026,26.0,134.96,134.93,0.063]
[1745259207224,39.7368022,134.97,134.93,0.063]
[1745259207424,20.0,134.99,134.94,19.7368022]
[1745259207736,39.7368022,134.99,134.94,19.7368022]
[1745259208237,45.7368022,135.0,134.95,19.7368022]
[1745259208744,37.2,135.01,134.97,19.7368022]
[1745259208917,37.2,135.01,134.96,19.7368022]
[1745259209122,56.9368022,135.01,134.96,19.7368022]
[1745259209749,37.2,135.01,134.97,19.7368022]
[1745259209930,20.0,135.01,134.97,19.7368022]
[1745259210565,20.0,135.01,134.96,27.14640504]
[1745259211258,45.7368022,135.02,134.97,19.7368022]
[1745259211557,53.14313129,135.02,134.97,19.7368022]
[1745259212032,19.7368022,135.01,134.96,27.14640504]
[1745259212762,45.7368022,135.02,134.97,19.7368022]
[1745259213065,37.2,135.05,135.0,19.7368022]
[1745259213237,56.9368022,135.05,135.0,19.7368022]
[1745259213435,82.9368022,135.05,135.0,19.7368022]
[1745259213930,56.9368022,135.05,135.0,19.7368022]
[1745259214167,17.2,135.05,135.02,19.7368022]
[1745259214354,45.7368022,135.06,135.01,19.7368022]
[1745259214731,45.7368022,135.06,135.02,7.40631017]
[1745259214947,26.0,135.06,135.02,27.14311237]
[1745259215546,17.18,135.09,135.03,19.7368022]
[1745259215547,37.18,135.09,135.03,19.7368022]
[1745259215736,45.7668022,135.08,135.03,19.7368022]
[1745259215938,19.7668022,135.08,135.03,19.7368022]
[1745259216260,45.7668022,135.08,135.03,19.7368022]
[1745259216645,45.7668022,135.08,135.04,7.40521327]
[1745259217969,0.03,135.08,135.05,19.7368022]
[1745259218143,0.03,135.08,135.06,19.7368022]
[1745259218665,0.03,135.08,135.05,19.7368022]
[1745259219063,0.03,135.08,135.05,27.1409368]
[1745259220960,0.03,135.08,135.06,19.7368022]
[1745259221132,0.03,135.08,135.05,27.1409368]
[1745259224951,19.7668022,135.08,135.04,7.40499894]
[1745259225332,19.7668022,135.08,135.03,27.14233517]
[1745259225531,19.7668022,135.08,135.03,7.40553297]
[1745259226438,27.17014318,135.08,135.03,7.40553297]
[1745259226748,27.17014318,135.08,135.02,7.40610315]
[1745259226749,19.7368022,135.06,135.02,7.40610315]
[1745259227052,19.7368022,135.05,135.01,7.40661733]
[1745259227266,46.0,135.07,135.01,27.14341953]
[1745259227442,19.7368022,135.06,135.01,27.14341953]
[1745259227640,19.7368022,135.06,135.01,7.40661733]
[1745259228155,39.7368022,135.04,134.99,19.7368022]
[1745259228459,19.7368022,135.03,134.99,7.40795614]
[1745259230033,19.7368022,135.02,134.98,7.40840018]
[1745259230233,19.7368022,135.01,134.98,7.40840018]
[1745259230531,19.7368022,135.01,134.97,7.40905386]
[1745259230737,19.7368022,135.02,134.97,27.14585606]
[1745259231832,27.14284258,135.03,134.97,27.14585606]
[1745259232041,19.7368022,135.03,134.99,19.7368022]
[1745259232743,19.7368022,135.03,134.99,27.14422864]
[1745259233233,19.7368022,135.03,134.99,7.40742644]
[1745259234663,19.7368022,135.03,134.98,19.7368022]
[1745259236554,46.0,135.04,134.99,7.40795614]
[1745259236761,45.7368022,135.04,134.99,27.14475834]
[1745259236934,26.0,135.04,135.0,19.7368022]
[1745259237757,39.7368022,135.06,135.01,19.7368022]
[1745259238139,20.0,135.06,135.02,19.7368022]
[1745259238342,39.7368022,135.06,135.01,19.7368022]
[1745259238539,39.7368022,135.06,135.02,7.40631017]
[1745259238941,19.7368022,135.04,135.0,7.4074074]
[1745259239141,19.7368022,135.04,134.99,7.40767161]
[1745259239453,19.7368022,135.03,134.99,7.40767161]
[1745259240236,19.7368022,135.02,134.98,7.40825713]
[1745259240436,19.7368022,135.02,134.94,6.2099]
[1745259240437,19.7368022,134.99,134.94,6.2099]
[1745259240665,19.7368022,134.98,134.94,7.41070105]
[1745259241353,19.7368022,134.99,134.94,27.14750325]
[1745259241565,20.0,135.0,134.94,27.14750325]
[1745259241741,27.4074387,135.0,134.94,27.14750325]
[1745259242139,19.7368022,134.99,134.94,27.14750325]
[1745259242439,39.7368022,135.0,134.95,19.7368022]
[1745259242638,19.7368022,134.99,134.95,7.40963524]
[1745259243657,27.1448134,134.99,134.95,7.40963524]
[1745259243866,19.7368022,134.98,134.93,7.47372065]
[1745259244173,19.7368022,134.98,134.93,27.21052285]
[1745259245241,26.0,135.01,134.96,19.7368022]
[1745259245443,26.0,135.01,134.97,19.7368022]
[1745259245658,45.7368022,135.01,134.96,19.7368022]
[1745259245853,19.7368022,134.99,134.95,7.4101519]
[1745259247668,27.14489123,134.99,134.95,7.4101519]
[1745259247841,27.40768695,135.0,134.95,7.4101519]
[1745259248341,19.7368022,134.99,134.95,7.4101519]
[1745259248966,27.40768695,135.0,134.94,27.1472358]
[1745259249187,19.7368022,134.99,134.94,27.1472358]
[1745259249465,19.7368022,134.98,134.94,7.4104336]
[1745259250148,27.14481045,134.99,134.94,7.4104336]
[1745259250669,27.14481045,134.99,134.94,19.7368022]
[1745259251458,27.14481045,134.99,134.93,7.47425027]
[1745259251677,27.14481045,134.99,134.93,27.21105247]
[1745259251847,19.7368022,134.98,134.93,27.21105247]
[1745259252055,19.7368022,134.97,134.93,7.47425027]
[1745259252361,19.7368022,134.96,134.93,0.063]
[1745259252673,20.0,134.97,134.93,27.21093005]
[1745259253169,19.7368022,134.98,134.93,27.21093005]
[1745259253468,39.7368022,134.99,134.94,19.7368022]
[1745259253655,19.7368022,135.0,134.95,19.7368022]
[1745259254063,27.1443762,135.0,134.95,7.40972417]
[1745259254763,109.20704373,135.01,134.95,27.14652637]
[1745259254956,19.7368022,135.0,134.95,27.14652637]
[1745259256682,27.14423462,135.0,134.95,27.14652637]
[1745259256876,27.14423462,135.0,134.95,7.40972417]
[1745259258576,19.7368022,134.99,134.95,7.40972417]
[1745259258757,19.7368022,134.97,134.94,7.41045835]
[1745259259364,19.7368022,134.98,134.94,7.41045835]
[1745259259669,19.7368022,134.97,134.94,7.41045835]
[1745259260173,19.7368022,134.98,134.94,7.41045835]
[1745259261264,19.7368022,134.97,134.94,7.41045835]
[1745259261465,19.7368022,134.97,134.93,7.47403676]
[1745259261688,19.7368022,134.96,134.93,0.063]
[1745259261859,39.7368022,134.97,134.93,7.4741774]
[1745259262866,39.7368022,134.97,134.93,0.063]
[1745259263073,47.14589391,134.97,134.93,0.063]
[1745259265184,19.7368022,134.94,134.93,0.063]
[1745259265371,12.65119116,134.94,134.93,0.063]
[1745259267089,20.0,134.95,134.93,0.063]
[1745259267268,39.7649487,134.95,134.93,0.063]
[1745259268197,20.0,134.95,134.93,0.063]
[1745259268889,39.7649487,134.95,134.93,0.063]
[1745259270171,26.0,134.96,134.93,19.8279487]
[1745259270370,26.0,134.96,134.93,0.063]
[1745259270682,101.5649487,134.97,134.93,0.063]
[1745259270891,19.7649487,134.97,134.93,7.47425027]
[1745259271981,39.7649487,134.98,134.93,27.23919897]
[1745259276702,39.7649487,134.98,134.93,45.76732466]
[1745259277002,20.0,134.98,134.94,19.7649487]
[1745259277303,19.7649487,134.97,134.93,26.00237596]
[1745259277494,39.7649487,134.98,134.93,45.76732466]
[1745259278578,20.0,134.98,134.94,19.7649487]
[1745259278908,39.7649487,135.0,134.95,19.7649487]
[1745259279080,20.0,135.0,134.96,19.7649487]
[1745259279492,19.7649487,134.99,134.93,32.19187596]
[1745259279682,19.7649487,134.99,134.94,19.7649487]
[1745259280189,19.7649487,134.99,134.95,7.4101519]
[1745259287204,19.7649487,134.99,134.95,27.1751006]
[1745259287707,20.0,135.0,134.95,27.1751006]
[1745259287891,39.7649487,135.0,134.95,27.1751006]
[1745259288094,33.4070931,135.01,134.97,19.7649487]
[1745259288095,26.0,135.01,134.97,19.7649487]
[1745259288481,37.16,135.02,134.98,19.7649487]
[1745259288685,37.16,135.02,134.97,19.7649487]
[1745259289081,56.9249487,135.02,134.98,7.40850496]
[1745259289295,37.16,135.02,134.98,20.0418425]
[1745259289612,20.0,135.02,134.98,20.0418425]
[1745259289912,120.43333754,135.03,135.0,12.63333754]
[1745259289913,26.0,135.03,135.0,12.63333754]
[1745259290117,34.30013754,135.05,135.01,12.63333754]
[1745259290282,32.66333754,135.05,135.01,12.63333754]
[1745259290599,32.66333754,135.05,135.0,12.63333754]
[1745259290796,20.03,135.05,134.99,12.63333754]
[1745259290976,32.66333754,135.05,135.0,12.63333754]
[1745259291180,32.66333754,135.05,135.01,7.40685875]
[1745259291583,12.63333754,135.02,134.96,18.52356764]
[1745259291898,12.63333754,135.01,134.97,7.40905386]
[1745259293113,12.63333754,135.02,134.97,12.63333754]
[1745259293623,12.63333754,135.01,134.96,38.56650802]
[1745259293982,12.63333754,135.0,134.96,7.40960284]
[1745259294528,12.63333754,134.99,134.96,7.40960284]
[1745259295021,20.0,135.01,134.96,7.40960284]
[1745259295022,12.63333754,135.0,134.96,7.40960284]
[1745259297493,12.63333754,135.0,134.96,20.04294038]
[1745259298114,12.63333754,135.0,134.96,7.40960284]
[1745259300406,20.04077618,135.0,134.96,7.40960284]
[1745259300603,20.04077618,135.0,134.93,0.063]
[1745259300604,12.63333754,134.97,134.93,0.063]
[1745259300795,12.63333754,134.98,134.93,12.69633754]
[1745259300994,12.63333754,134.98,134.93,0.063]
[1745259301318,12.63333754,134.97,134.93,0.063]
[1745259301693,12.63333754,134.97,134.93,7.47425027]
[1745259301892,12.63333754,134.98,134.93,20.10758781]
[1745259302403,12.63333754,134.97,134.93,7.47425027]
[1745259302707,12.63333754,134.96,134.93,0.063]
[1745259302909,12.63333754,134.95,134.93,0.063]
[1745259303123,12.63333754,134.94,134.93,0.063]
[1745259303297,38.63333754,134.94,134.93,0.063]
[1745259303698,46.04403859,134.94,134.93,0.063]
[1745259304421,38.63333754,134.94,134.93,0.063]
[1745259305218,20.0,134.95,134.93,0.063]
[1745259305513,38.63333754,134.96,134.93,0.063]
[1745259307006,26.0,134.96,134.93,0.063]
[1745259307205,32.63333754,134.97,134.93,0.063]
[1745259307523,12.63333754,134.96,134.93,0.063]
[1745259308520,12.63333754,134.95,134.93,0.063]
[1745259309024,12.63333754,134.94,134.93,0.063]
[1745259310230,31.42514797,134.94,134.93,0.063]
[1745259310403,44.85558556,134.94,134.93,0.063]
[1745259310905,38.83584902,134.94,134.93,0.063]
[1745259311416,45.97882037,134.94,134.93,0.063]
[1745259311611,26.20251148,134.94,134.93,0.063]
[1745259311819,45.97882037,134.94,134.93,0.063]
[1745259314719,20.0,134.95,134.93,0.063]
[1745259314928,26.0,134.94,134.93,0.063]
[1745259315747,20.0,134.93,134.92,0.063]
[1745259315917,58.56811932,134.93,134.92,0.063]
[1745259316744,65.97936959,134.93,134.92,0.063]
[1745259320319,46.2030607,134.93,134.92,0.063]
[1745259320512,65.97936959,134.93,134.92,0.063]
[1745259321919,46.2030607,134.93,134.92,0.063]
[1745259322114,47.18755916,134.93,134.92,0.063]
[1745259322313,20.0,134.95,134.92,0.063]
[1745259322650,26.0,134.96,134.92,19.83930889]
[1745259322931,20.0,134.97,134.93,19.77630889]
[1745259323250,44.5082007,134.99,134.94,19.77630889]
[1745259323744,63.1,134.99,134.94,19.77630889]
[1745259324029,63.1,134.99,134.95,19.77630889]
[1745259324270,39.77630889,135.01,134.96,27.18591173]
[1745259324906,73.18319161,135.01,134.96,27.18591173]
[1745259325105,19.77630889,135.0,134.96,7.40960284]
[1745259325334,19.77630889,134.99,134.95,7.40997054]
[1745259325737,45.77630889,135.0,134.95,27.18627943]
[1745259326237,53.18379326,135.0,134.94,7.41070105]
[1745259326412,53.18379326,135.0,134.95,19.77630889]
[1745259326611,53.18379326,135.0,134.94,27.18700994]
[1745259326612,19.77630889,134.99,134.94,27.18700994]
[1745259326918,53.18379326,135.0,134.95,19.77630889]
[1745259327132,19.77630889,135.02,134.97,19.77630889]
[1745259327331,45.77630889,135.02,134.97,19.77630889]
[1745259328746,45.77630889,135.02,134.98,7.40850496]
[1745259329622,26.0,135.02,134.98,27.18481385]
[1745259329843,19.77630889,135.01,134.97,7.40881446]
[1745259330053,19.77630889,135.0,134.95,19.77630889]
[1745259330427,20.0,135.01,134.94,27.18700994]
[1745259330428,19.77630889,134.99,134.94,27.18700994]
[1745259330757,19.77630889,135.0,134.95,19.77630889]
[1745259332017,47.18334455,135.01,134.96,19.77630889]
[1745259332538,47.18334455,135.01,134.95,7.40982135]
[1745259332747,39.77630889,134.99,134.94,19.77630889]
[1745259332953,19.77630889,134.98,134.93,28.78635232]
[1745259333330,19.77630889,134.98,134.93,9.01004343]
[1745259333845,19.27630889,134.98,134.93,28.78635232]
[1745259334347,39.77630889,134.97,134.93,9.01047501]
[1745259335229,26.0,134.99,134.96,19.77630889]
[1745259335434,26.0,134.99,134.97,19.77630889]
[1745259335655,26.0,134.99,134.96,19.77630889]
[1745259336043,26.0,134.99,134.97,7.40905386]
[1745259336842,26.0,134.99,134.97,27.18536275]
[1745259337052,26.0,134.99,134.96,19.77630889]
[1745259337657,47.18350429,135.01,134.96,19.77630889]
[1745259337955,73.18350429,135.01,134.96,19.77630889]
[1745259338656,73.18350429,135.01,134.96,27.18546083]
[1745259340062,46.0,135.01,134.97,19.77630889]
[1745259340268,0.03,135.05,135.0,19.77630889]
[1745259340432,0.03,135.05,134.98,26.91374886]
[1745259340433,0.03,135.05,135.03,19.77630889]
[1745259341645,0.03,135.05,135.04,21.42840889]
[1745259341963,0.03,135.07,135.05,18.79181043]
[1745259342162,0.03,135.07,135.05,45.97278425]
[1745259342769,0.03,135.07,135.06,19.77630889]
[1745259343768,0.03,135.08,135.06,19.77630889]
[1745259343932,1e-08,135.08,135.07,38.56811932]
[1745259344256,1e-08,135.08,135.07,45.97168784]
[1745259344556,0.03,135.12,135.08,18.79181043]
[1745259344779,0.03,135.12,135.07,25.91248982]
[1745259345072,19.77630889,135.09,135.07,7.40356852]
[1745259345428,46.0,135.07,135.0,18.51838733]
[1745259345639,19.77630889,135.06,135.01,19.77630889]
[1745259345845,8.0499,135.06,135.0,18.51838733]
[1745259346062,8.0499,135.06,134.99,7.40795614]
[1745259346359,27.82620889,135.06,135.01,19.77630889]
[1745259346778,27.82620889,135.06,135.0,27.18326857]
[1745259347335,19.77630889,135.06,135.01,19.77630889]
[1745259348441,19.77630889,135.04,134.99,19.77630889]
[1745259349040,39.77630889,135.05,134.99,19.77630889]
[1745259349361,39.77630889,135.05,135.0,19.77630889]
[1745259349868,19.77630889,135.04,134.99,27.18397532]
[1745259350042,19.77630889,135.04,134.99,19.77630889]
[1745259350236,19.77630889,135.04,134.98,7.40850496]
[1745259350437,19.77630889,135.04,134.99,19.77630889]
[1745259350665,19.77630889,135.03,134.98,27.18481385]
[1745259350846,19.77630889,135.02,134.97,110.60726476]
[1745259351046,19.77630889,135.02,134.97,108.95516476]
[1745259351245,39.77630889,135.02,134.96,7.40938175]
[1745259351563,46.0,135.04,135.0,19.77630889]
[1745259351769,46.0,135.04,135.01,19.77630889]
[1745259351974,20.0,135.04,135.01,19.77630889]
[1745259352766,20.0,135.04,134.97,44.79181043]
[1745259352955,20.0,135.04,135.0,19.77630889]
[1745259353160,20.0,135.04,135.01,19.77630889]
[1745259353348,20.0,135.04,134.97,44.79181043]
[1745259353546,20.0,135.04,135.01,19.77630889]
[1745259356863,46.0,135.09,135.03,19.77630889]
[1745259357067,37.06,135.11,135.06,19.77630889]
[1745259357268,26.0,135.1,135.06,19.77630889]
[1745259357476,26.0,135.1,135.02,18.79181043]
[1745259357477,45.77630889,135.1,135.05,19.77630889]
[1745259357677,39.77630889,135.09,135.01,107.69393225]
[1745259357852,39.77630889,135.07,135.02,19.77630889]
[1745259358246,47.1801366,135.07,135.02,19.77630889]
[1745259358441,47.1801366,135.07,135.01,7.4067854]
[1745259358863,47.1801366,135.07,135.02,19.77630889]
[1745259359061,19.77630889,135.06,135.01,19.77630889]
[1745259359259,19.77630889,135.04,134.99,27.18403217]
[1745259359659,19.77630889,135.03,134.99,7.40772328]
[1745259359858,19.77630889,135.02,134.97,103.17660887]
[1745259360061,20.0,135.03,134.95,17.06]
[1745259360062,19.77630889,135.0,134.95,17.06]
[1745259360252,19.77630889,135.0,134.95,19.77630889]
[1745259360451,19.77630889,135.0,134.95,27.18633246]
[1745259360758,26.0,135.02,134.99,19.77630889]
[1745259360972,19.77630889,135.04,134.99,19.77630889]
[1745259361287,19.77630889,135.04,134.98,19.77630889]
[1745259361457,19.77630889,135.03,134.98,19.77630889]
[1745259362156,27.18167402,135.04,134.99,27.18426503]
[1745259362359,19.77630889,135.03,134.98,27.1845468]
[1745259362558,46.0,135.05,134.99,19.77630889]
[1745259362881,26.0,135.07,135.03,19.77630889]
[1745259363075,45.77630889,135.07,135.02,19.77630889]
[1745259363577,33.40362821,135.07,135.01,19.77630889]
[1745259363781,33.40362821,135.07,135.03,19.77630889]
[1745259364073,53.1799371,135.07,135.02,19.77630889]
[1745259364261,33.40362821,135.07,135.02,27.18219048]
[1745259364649,53.1799371,135.07,135.02,27.18219048]
[1745259365055,45.77630889,135.07,135.03,19.77630889]
[1745259365258,17.06,135.1,135.05,19.77630889]
[1745259365456,27.20737913,135.12,135.07,19.77630889]
[1745259365663,7.43107024,135.12,135.08,19.77630889]
[1745259365868,0.03,135.12,135.08,19.77630889]
[1745259366456,0.03,135.12,135.08,27.17918842]
[1745259366676,26.03,135.12,135.08,27.17918842]
[1745259367050,45.80630889,135.12,135.07,19.77630889]
[1745259367574,45.80630889,135.12,135.06,7.40411668]
[1745259367885,45.80630889,135.12,135.07,19.77630889]
[1745259368053,19.80630889,135.12,135.07,27.17938535]
[1745259368258,45.80630889,135.12,135.07,27.17938535]
[1745259368773,26.03,135.12,135.08,19.77630889]
[1745259368970,33.4309973,135.12,135.08,19.77630889]
[1745259369186,26.03,135.12,135.08,19.77630889]
[1745259370277,26.03,135.12,135.08,27.17923797]
[1745259370784,26.03,135.12,135.06,7.40411668]
[1745259370785,33.43091784,135.12,135.06,7.40411668]
[1745259371076,19.77630889,135.1,135.05,21.37410889]
[1745259371781,19.77630889,135.1,135.05,27.18074496]
[1745259372086,20.0,135.11,135.08,19.77630889]
[1745259372555,26.03,135.12,135.09,19.77630889]
[1745259374183,26.03,135.12,135.09,27.17851306]
[1745259374369,26.03,135.12,135.1,19.77630889]
[1745259374370,0.03,135.12,135.1,19.77630889]
[1745259374889,0.03,135.12,135.09,7.40220417]
[1745259375066,0.03,135.12,135.09,27.17851306]
[1745259376090,0.03,135.12,135.1,27.17775471]
[1745259377162,0.03,135.12,135.11,19.77630889]
[1745259378278,0.03,135.12,135.11,27.17768554]
[1745259381663,0.03,135.12,135.1,27.17823339]
[1745259382066,0.03,135.12,135.1,7.4019245]
[1745259382265,0.03,135.12,135.09,7.40220785]
[1745259382570,0.03,135.12,135.09,27.17851674]
[1745259383297,0.03,135.12,135.1,19.77630889]
[1745259383779,0.03,135.12,135.1,27.17793809]
[1745259385267,0.03,135.12,135.1,7.4016292]
[1745259385490,0.03,135.12,135.1,27.17793809]
[1745259385692,0.03,135.12,135.11,19.77630889]
[1745259385880,0.03,135.12,135.11,27.17768554]
[1745259387973,0.03,135.14,135.11,47.38478875]
[1745259388295,0.03,135.14,135.13,19.77630889]
[1745259388891,0.03,135.14,135.12,19.77630889]
[1745259389387,0.03,135.14,135.13,19.77630889]
[1745259389776,0.03,135.14,135.12,27.17676146]
[1745259390286,0.03,135.14,135.12,7.40045257]
[1745259390500,0.03,135.14,135.11,19.77630889]
[1745259390663,39.80630889,135.14,135.09,7.40221923]
[1745259391074,19.77630889,135.13,135.09,7.40221923]
[1745259391475,39.80630889,135.14,135.09,27.17852812]
[1745259391675,19.77630889,135.13,135.09,7.40221923]
[1745259392279,47.2063883,135.14,135.09,27.17852812]
[1745259392792,19.77630889,135.13,135.09,7.40221923]
[1745259393172,20.03,135.14,135.1,19.77630889]
[1745259393587,0.03,135.14,135.13,19.77630889]
[1745259393777,0.03,135.14,135.11,19.77630889]
[1745259394274,0.03,135.14,135.09,27.46990029]
[1745259394486,0.03,135.14,135.11,19.77630889]
[1745259394670,0.03,135.14,135.1,19.77630889]
[1745259394866,0.03,135.14,135.1,27.17810949]
[1745259395079,39.80630889,135.14,135.1,7.4018006]
[1745259395280,20.03,135.14,135.1,27.17810949]
[1745259395992,19.77630889,135.12,135.07,27.17961634]
[1745259396190,19.77630889,135.09,135.05,7.40466493]
[1745259396491,19.77630889,135.08,135.05,7.40466493]
[1745259396873,19.77630889,135.09,135.05,7.40466493]
[1745259397282,65.77630889,135.1,135.05,27.18097382]
[1745259398198,19.77630889,135.09,135.05,7.40466493]
[1745259398379,46.0,135.1,135.05,27.18097382]
[1745259398574,65.77630889,135.1,135.05,27.18097382]
[1745259398774,19.77630889,135.09,135.05,7.40466493]
[1745259399595,19.77630889,135.08,135.04,89.17501519]
[1745259399978,53.40210221,135.1,135.04,108.95132408]
[1745259400180,19.77630889,135.09,135.04,108.95132408]
[1745259400796,7.40302043,135.08,135.04,108.95132408]
[1745259401008,27.17900492,135.09,135.04,108.95132408]
[1745259401377,27.17900492,135.09,135.04,27.1813241]
[1745259401593,19.77630889,135.08,135.04,7.40501521]
[1745259401896,39.77630889,135.08,135.03,27.24491015]
[1745259402095,20.0,135.08,135.04,19.77630889]
[1745259402287,73.17849143,135.1,135.05,19.77630889]
[1745259402481,46.0,135.1,135.05,19.77630889]
[1745259402689,46.0,135.1,135.06,19.77630889]
[1745259402995,26.0,135.1,135.07,19.77630889]
[1745259403602,47.17731052,135.12,135.07,19.77630889]
[1745259403809,47.17731052,135.12,135.08,19.77630889]
[1745259403810,20.0,135.12,135.08,19.77630889]
[1745259404508,20.0,135.12,135.07,19.77630889]
[1745259404509,27.4009379,135.12,135.07,19.77630889]
[1745259404813,39.77630889,135.1,135.05,27.18075953]
[1745259404979,47.6209,135.13,135.06,19.77630889]
[1745259405177,67.39720889,135.13,135.08,19.77630889]